bitfinex-derivatives/quotes_SOLF0:USTF0_20250227
["timestamp","ask_amount","ask_price","bid_price","bid_amount"]
[1740654356653,0.05131908,142.19,142.18,28.1395]
[1740654357157,0.05131908,142.19,142.18,7.0395]
[1740654358658,0.05131908,142.19,142.17,7.0398]
[1740654358958,0.05131908,142.19,142.16,0.04775181]
[1740654359154,0.05131908,142.19,142.17,7.0395]
[1740654359458,0.05131908,142.19,142.16,0.04775181]
[1740654359654,0.05131908,142.19,142.17,7.04]
[1740654359854,0.05131908,142.19,142.16,0.04775181]
[1740654360855,0.05131908,142.19,142.16,7.08795181]
[1740654361060,7.09051908,142.19,142.16,7.08795181]
[1740654361862,0.05131908,142.19,142.16,0.04775181]
[1740654362158,0.05131908,142.19,142.17,7.04]
[1740654362659,7.09071908,142.19,142.16,0.04775181]
[1740654363161,7.0398,142.18,142.16,0.04775181]
[1740654363362,0.05131908,142.19,142.16,0.04775181]
[1740654363862,0.05131908,142.19,142.18,7.0395]
[1740654366654,0.05131908,142.19,142.17,7.0397]
[1740654366853,0.05131908,142.19,142.16,0.04775181]
[1740654367862,0.05131908,142.19,142.16,7.08795181]
[1740654368561,7.09031908,142.19,142.16,7.08795181]
[1740654370062,0.05131908,142.19,142.16,7.08795181]
[1740654370462,0.05131908,142.19,142.18,7.0395]
[1740654370962,0.05131908,142.19,142.16,0.04775181]
[1740654371567,0.05131908,142.19,142.17,7.0399]
[1740654372662,0.05131908,142.19,142.18,7.0395]
[1740654383175,0.05131908,142.19,142.17,7.0397]
[1740654385181,0.05131908,142.19,142.18,7.0395]
[1740654392482,0.05131908,142.19,142.18,14.45403071]
[1740654395083,0.05131908,142.19,142.16,0.04775181]
[1740654395284,0.05131908,142.19,142.17,7.41756318]
[1740654395586,0.05131908,142.19,142.16,0.04775181]
[1740654395782,0.05131908,142.19,142.17,7.41929642]
[1740654395987,0.05131908,142.19,142.16,0.04775181]
[1740654396180,0.05131908,142.19,142.17,14.45932917]
[1740654396385,0.05131908,142.19,142.16,0.04775181]
[1740654396585,0.05131908,142.19,142.17,7.41966115]
[1740654396787,0.05131908,142.19,142.16,0.04775181]
[1740654397389,0.05131908,142.19,142.18,7.0395]
[1740654398387,0.05131908,142.19,142.18,14.45884316]
[1740654400093,0.05131908,142.19,142.17,7.0398]
[1740654400790,0.05131908,142.19,142.16,7.08815181]
[1740654400992,7.09061908,142.19,142.16,0.04775181]
[1740654401288,0.05131908,142.19,142.17,7.0396]
[1740654401485,7.04,142.17,142.11,38.92786122]
[1740654401694,1.9498,142.16,142.12,7.42768429]
[1740654401889,1.9498,142.16,142.13,7.42768429]
[1740654402089,1.9498,142.16,142.12,9.7319653]
[1740654402500,1.9498,142.16,142.14,7.0412]
[1740654402796,0.05171289,142.15,142.13,0.05143399]
[1740654403194,0.05171289,142.15,142.13,7.09303399]
[1740654403394,0.05171289,142.15,142.13,0.05143399]
[1740654403998,0.05171289,142.15,142.14,7.0415]
[1740654404199,0.05171289,142.15,142.13,0.05143399]
[1740654404700,0.05171289,142.15,142.13,7.09313399]
[1740654405001,0.05171289,142.15,142.13,0.05143399]
[1740654405193,0.05171289,142.15,142.14,7.0415]
[1740654407491,1.289e-05,142.15,142.14,14.46146193]
[1740654410304,1.289e-05,142.15,142.14,35.56146193]
[1740654410603,3.9491,142.23,142.21,7.0378]
[1740654410990,1.9939,142.24,142.18,7.41315883]
[1740654411298,1.9939,142.24,142.23,7.037]
[1740654411997,1.9939,142.24,142.22,0.05073966]
[1740654412196,1.9939,142.24,142.22,7.08793966]
[1740654412597,1.9939,142.24,142.22,0.05073966]
[1740654414601,0.05226787,142.25,142.22,0.05073966]
[1740654414602,0.05226787,142.25,142.23,7.0367]
[1740654416400,7.08856787,142.25,142.22,0.05073966]
[1740654416607,0.05226787,142.25,142.22,0.05073966]
[1740654418199,0.05226787,142.25,142.23,7.0367]
[1740654420004,0.05226787,142.25,142.24,7.0365]
[1740654421507,0.05226787,142.25,142.22,0.05073966]
[1740654422100,7.08856787,142.25,142.22,0.05073966]
[1740654422305,0.05226787,142.25,142.16,18.42819913]
[1740654422507,2.0139,142.28,142.17,7.40819913]
[1740654422805,7.0369,142.24,142.2,7.0384]
[1740654423205,7.0369,142.24,142.16,11.02]
[1740654423206,2.0139,142.28,142.18,7.40754049]
[1740654423407,0.048998,142.23,142.21,0.05154035]
[1740654423709,7.0362,142.25,142.21,0.05154035]
[1740654423916,0.04724479,142.23,142.21,7.08934035]
[1740654424512,0.04724479,142.23,142.22,7.0375]
[1740654431410,205.5815,142.36,142.21,0.05154035]
[1740654431615,5.8116,142.35,142.22,7.40010786]
[1740654431811,5.8116,142.35,142.23,18.48010786]
[1740654432006,5.8116,142.35,142.24,7.40010786]
[1740654432209,5.8116,142.35,142.25,7.40010786]
[1740654432410,5.8116,142.35,142.26,7.38652202]
[1740654432717,0.05136482,142.31,142.3,7.0335]
[1740654433015,0.05136482,142.31,142.29,0.05363103]
[1740654433016,5.8116,142.35,142.29,0.05363103]
[1740654433213,0.04570236,142.32,142.3,11.08]
[1740654434421,0.04570236,142.32,142.31,7.033]
[1740654435308,0.04570236,142.32,142.29,0.05363103]
[1740654436417,7.0331,142.31,142.29,0.05363103]
[1740654436618,10.9031,142.31,142.29,0.05363103]
[1740654437220,7.0335,142.3,142.29,0.05363103]
[1740654437614,1.8701,142.3,142.24,11.06]
[1740654438019,1.8701,142.3,142.23,45.96456122]
[1740654438220,1.8701,142.3,142.23,7.0367]
[1740654438719,0.048315,142.28,142.25,0.0517749]
[1740654438919,0.048315,142.28,142.21,81.23577785]
[1740654439110,0.048315,142.28,142.21,11.06]
[1740654439421,0.048315,142.28,142.21,18.0977]
[1740654439818,7.0363,142.25,142.21,18.0977]
[1740654440119,1.8701,142.3,142.22,0.04924679]
[1740654440315,0.04817641,142.24,142.22,7.08674679]
[1740654440516,0.04544985,142.27,142.22,7.08674679]
[1740654440927,0.04544985,142.27,142.23,7.0368]
[1740654441127,0.04544985,142.27,142.22,0.04924679]
[1740654443226,7.0363,142.25,142.22,0.04924679]
[1740654444432,0.04544985,142.27,142.22,0.04924679]
[1740654444927,7.0383,142.21,142.17,7.0397]
[1740654445134,1.8701,142.3,142.14,38.92786122]
[1740654445728,1.8701,142.3,142.14,9.7319653]
[1740654446233,0.05287559,142.23,142.14,9.7319653]
[1740654446432,203.08,142.25,142.14,9.7319653]
[1740654446633,0.04970349,142.2,142.14,9.7319653]
[1740654447634,0.04970349,142.2,142.08,11.08]
[1740654447829,3.8824,142.24,142.08,11.08]
[1740654448031,0.05326311,142.15,142.08,11.08]
[1740654448229,0.05326311,142.15,142.06,9.7319653]
[1740654448428,7.0435,142.1,142.06,9.7319653]
[1740654448627,3.9876,142.14,142.06,9.7319653]
[1740654448827,0.0450399,142.09,142.06,9.7319653]
[1740654449632,7.0891399,142.09,142.06,9.7319653]
[1740654450432,7.0448,142.08,142.06,6.6785653]
[1740654450630,0.0450399,142.09,142.05,107.05161837]
[1740654450931,0.0450399,142.09,141.99,119.37453545]
[1740654451127,7.0458,142.06,142.0,7.0481]
[1740654451333,0.04946397,142.05,142.0,7.0481]
[1740654451733,0.04946397,142.05,141.99,119.37453545]
[1740654452536,7.0468,142.04,141.99,126.42303545]
[1740654452734,0.04946397,142.05,141.99,119.37453545]
[1740654452936,7.0466,142.04,141.99,126.42303545]
[1740654453237,0.04946397,142.05,141.99,119.37453545]
[1740654453826,0.04946397,142.05,141.99,109.67364456]
[1740654455035,0.04946397,142.05,141.96,3.1372]
[1740654455234,7.0455,142.06,141.96,3.1372]
[1740654455435,7.0455,142.06,142.02,7.0471]
[1740654455936,0.04995475,142.05,142.02,7.0471]
[1740654456137,0.04995475,142.05,141.96,3.1372]
[1740654456439,7.0455,142.06,141.96,3.1372]
[1740654456639,0.04520447,142.02,141.96,3.1372]
[1740654457239,0.04520447,142.02,142.01,7.0479]
[1740654458635,0.04520447,142.02,142.0,7.0483]
[1740654458836,0.04520447,142.02,141.96,3.1372]
[1740654459032,0.04520447,142.02,141.96,1.927]
[1740654459236,7.09270447,142.02,141.97,7.0494]
[1740654459436,7.09270447,142.02,141.96,1.927]
[1740654459837,0.04520447,142.02,141.96,1.927]
[1740654460037,7.0479,142.01,141.97,7.0495]
[1740654460233,0.04520447,142.02,141.96,1.927]
[1740654460537,7.0484,142.0,141.97,7.0495]
[1740654461034,7.048,142.01,141.98,7.0494]
[1740654461235,0.04520447,142.02,141.96,1.927]
[1740654461641,7.09280447,142.02,141.96,1.927]
[1740654463041,0.04520447,142.02,141.96,1.927]
[1740654463242,0.04520447,142.02,141.99,7.0489]
[1740654463443,0.04520447,142.02,141.96,1.927]
[1740654463640,7.09260447,142.02,141.96,1.927]
[1740654463839,0.04520447,142.02,141.96,1.927]
[1740654465245,7.09300447,142.02,141.96,1.927]
[1740654465848,7.0481,142.01,141.96,1.927]
[1740654467552,0.04520447,142.02,141.97,7.0496]
[1740654468051,0.04520447,142.02,141.98,7.049]
[1740654468650,0.04520447,142.02,141.96,8.9771]
[1740654468841,0.04520447,142.02,141.93,15.0149]
[1740654469151,1.8852,142.1,141.93,15.0149]
[1740654469352,7.10003431,141.99,141.95,7.0508]
[1740654469553,7.0489,141.99,141.95,7.0508]
[1740654469750,0.04442864,141.98,141.95,7.0508]
[1740654470654,7.09412864,141.98,141.93,3.9349]
[1740654471348,7.05,141.97,141.94,7.0514]
[1740654473354,0.04442864,141.98,141.93,3.9349]
[1740654473558,7.09412864,141.98,141.95,7.0508]
[1740654478853,0.04442864,141.98,141.95,7.0508]
[1740654479049,0.04442864,141.98,141.96,7.05]
[1740654479561,0.04442864,141.98,141.93,1.9727]
[1740654481463,7.09382864,141.98,141.95,7.0505]
[1740654482361,0.04442864,141.98,141.95,7.0505]
[1740654483159,0.04442864,141.98,141.93,1.9727]
[1740654483859,7.09402864,141.98,141.93,1.9727]
[1740654484157,7.09402864,141.98,141.95,7.0505]
[1740654484857,7.09402864,141.98,141.93,1.9727]
[1740654485060,7.05,141.97,141.94,7.0511]
[1740654485361,0.04442864,141.98,141.93,1.9727]
[1740654485562,7.0515,141.94,141.91,2.0092]
[1740654485954,0.05230853,141.94,141.89,29.18984349]
[1740654486164,0.05230853,141.94,141.89,36.24334349]
[1740654486463,7.0523,141.93,141.89,29.18984349]
[1740654486665,7.0523,141.93,141.9,7.0531]
[1740654487059,0.05230853,141.94,141.89,29.18984349]
[1740654487261,7.10390853,141.94,141.88,125.09702437]
[1740654487461,0.05230853,141.94,141.88,125.09702437]
[1740654487662,7.0527,141.92,141.89,7.0536]
[1740654488265,7.053,141.91,141.89,7.0536]
[1740654488559,0.05230853,141.94,141.9,7.0533]
[1740654488764,7.0525,141.92,141.88,125.09702437]
[1740654489168,0.04980251,141.93,141.9,7.0532]
[1740654489667,7.10180251,141.93,141.9,7.0532]
[1740654490067,0.04980251,141.93,141.89,7.0536]
[1740654490260,7.0527,141.92,141.88,125.09702437]
[1740654490466,0.04980251,141.93,141.88,72.18198188]
[1740654491166,0.04980251,141.93,141.9,7.0532]
[1740654491367,7.10180251,141.93,141.9,7.0532]
[1740654493866,7.0527,141.92,141.88,72.18198188]
[1740654494370,7.10190251,141.93,141.9,7.053]
[1740654494666,0.04980251,141.93,141.88,72.18198188]
[1740654494967,7.10170251,141.93,141.88,72.18198188]
[1740654495869,7.10170251,141.93,141.9,7.0531]
[1740654496064,0.04980251,141.93,141.88,72.18198188]
[1740654496268,0.04980251,141.93,141.89,7.41130992]
[1740654496466,0.04980251,141.93,141.92,7.0524]
[1740654496666,0.04980251,141.93,141.88,72.18198188]
[1740654496971,0.04980251,141.93,141.9,7.0533]
[1740654497668,0.04980251,141.93,141.88,72.18198188]
[1740654498070,0.04980251,141.93,141.89,7.4113176]
[1740654498269,0.04980251,141.93,141.92,7.0524]
[1740654504868,0.04980251,141.93,141.88,1.8396]
[1740654505262,7.0526,141.92,141.89,7.0536]
[1740654506671,7.0526,141.92,141.88,1.8396]
[1740654506672,7.0529,141.91,141.88,8.8937]
[1740654506872,0.04980251,141.93,141.88,8.8937]
[1740654507378,7.0526,141.92,141.88,8.8937]
[1740654507780,7.0526,141.92,141.89,7.0536]
[1740654509074,7.0526,141.92,141.88,1.8396]
[1740654509075,7.053,141.91,141.88,7.0541]
[1740654509381,0.04980251,141.93,141.86,0.62220959]
[1740654509577,3.7918,142.01,141.86,0.62220959]
[1740654509776,7.10221558,141.91,141.87,7.0545]
[1740654509976,7.0532,141.91,141.86,0.62220959]
[1740654510170,0.05118864,141.9,141.87,7.0544]
[1740654511269,0.05118864,141.9,141.88,7.0541]
[1740654511881,0.05118864,141.9,141.86,0.62220959]
[1740654512175,0.05118864,141.9,141.89,7.0539]
[1740654513481,7.0507,141.96,141.92,7.0519]
[1740654513678,7.0507,141.96,141.88,1.8492]
[1740654513981,7.0507,141.96,141.89,2.0344]
[1740654514779,0.04729683,141.94,141.91,0.05066139]
[1740654515279,0.04729683,141.94,141.92,7.0524]
[1740654515475,0.04729683,141.94,141.91,0.05066139]
[1740654517381,0.04729683,141.94,141.93,7.0519]
[1740654517779,0.04729683,141.94,141.91,0.05066139]
[1740654518178,0.04729683,141.94,141.92,7.0521]
[1740654518379,7.09879683,141.94,141.91,0.05066139]
[1740654518979,0.04729683,141.94,141.91,0.05066139]
[1740654519180,7.0519,141.93,141.91,0.05066139]
[1740654519683,7.0524,141.92,141.91,0.05066139]
[1740654521385,0.04729683,141.94,141.84,51.93966218]
[1740654521589,7.0536,141.9,141.84,51.93966218]
[1740654521789,7.0536,141.9,141.84,12.9983]
[1740654522084,7.0536,141.9,141.84,1.9983]
[1740654522282,1.8904,141.98,141.84,1.9983]
[1740654522692,0.0457307,141.92,141.84,1.9983]
[1740654522888,7.0546,141.88,141.84,1.9983]
[1740654523094,14.1004,141.97,141.84,1.9983]
[1740654523287,0.05366181,141.87,141.84,1.9983]
[1740654523483,7.0541,141.89,141.86,7.055]
[1740654523685,0.04563133,141.87,141.86,7.055]
[1740654530900,0.04563133,141.87,141.85,7.0556]
[1740654531604,0.04563133,141.87,141.84,7.0561]
[1740654531802,0.04563133,141.87,141.82,12.8783]
[1740654532000,0.04563133,141.87,141.83,7.45002388]
[1740654532196,0.04563133,141.87,141.82,12.8783]
[1740654532401,0.04563133,141.87,141.83,7.44896724]
[1740654532602,0.04563133,141.87,141.82,12.8783]
[1740654532802,0.04563133,141.87,141.85,7.0555]
[1740654533203,0.04563133,141.87,141.82,12.8783]
[1740654533405,0.04563133,141.87,141.83,7.44966774]
[1740654533606,0.04563133,141.87,141.82,1.8783]
[1740654533607,7.0557,141.86,141.82,1.8783]
[1740654533906,0.04563133,141.87,141.82,1.8783]
[1740654534601,0.04563133,141.87,141.86,7.0554]
[1740654535405,0.04563133,141.87,141.85,7.0556]
[1740654536205,0.04563133,141.87,141.86,7.0554]
[1740654538208,0.04563133,141.87,141.83,7.44468105]
[1740654538508,0.04563133,141.87,141.85,7.0558]
[1740654538710,0.04563133,141.87,141.79,1.9946]
[1740654538903,0.04563133,141.87,141.8,7.44816526]
[1740654539104,0.04563133,141.87,141.81,7.44816526]
[1740654539304,0.04563133,141.87,141.82,7.44816526]
[1740654539505,0.04563133,141.87,141.79,1.9946]
[1740654539706,0.04563133,141.87,141.8,7.4451042]
[1740654539905,0.04563133,141.87,141.79,1.9946]
[1740654540209,7.10063133,141.87,141.84,7.0561]
[1740654541206,7.10063133,141.87,141.79,1.9946]
[1740654541207,7.0554,141.86,141.83,7.0566]
[1740654541404,0.04563133,141.87,141.79,1.9946]
[1740654541709,14.1046,141.93,141.79,1.9946]
[1740654541905,0.04778104,141.84,141.82,7.0571]
[1740654542107,7.0562,141.85,141.82,7.0571]
[1740654542409,0.05345341,141.84,141.82,7.0571]
[1740654542609,1.962,141.92,141.82,7.0571]
[1740654542810,0.04668807,141.84,141.82,7.0571]
[1740654543010,1.962,141.92,141.82,7.0571]
[1740654543204,0.05087241,141.84,141.82,7.0571]
[1740654543406,1.962,141.92,141.82,7.0571]
[1740654543811,7.0565,141.84,141.82,7.0571]
[1740654544311,7.10599426,141.84,141.79,1.9946]
[1740654544806,0.04949426,141.84,141.79,1.9946]
[1740654545001,0.04949426,141.84,141.82,7.057]
[1740654546413,0.04949426,141.84,141.83,7.0568]
[1740654547412,0.04949426,141.84,141.79,1.9946]
[1740654547713,0.04949426,141.84,141.79,9.43134739]
[1740654548008,0.04949426,141.84,141.79,1.9946]
[1740654548914,0.04949426,141.84,141.83,7.0568]
[1740654551215,0.04949426,141.84,141.82,7.0571]
[1740654555418,0.04949426,141.84,141.79,1.9946]
[1740654555713,0.04949426,141.84,141.83,7.0568]
[1740654559215,1.962,141.92,141.87,7.0547]
[1740654559621,1.962,141.92,141.79,37.2918]
[1740654559622,1.962,141.92,141.79,16.1118]
[1740654559821,1.962,141.92,141.87,7.0548]
[1740654560218,7.0533,141.91,141.87,7.0548]
[1740654560419,0.04782713,141.91,141.88,0.04495087]
[1740654560621,1.962,141.92,141.88,7.054]
[1740654560821,0.05075749,141.91,141.88,0.0477172]
[1740654562315,0.05075749,141.91,141.89,7.0539]
[1740654562920,7.10365749,141.91,141.88,0.0477172]
[1740654563727,0.05075749,141.91,141.88,0.0477172]
[1740654564327,0.05075749,141.91,141.89,7.0536]
[1740654566029,0.05075749,141.91,141.9,7.0534]
[1740654566427,0.05075749,141.91,141.88,0.0477172]
[1740654567527,7.0536,141.9,141.88,0.0477172]
[1740654568529,7.10375749,141.91,141.88,0.0477172]
[1740654568728,0.05075749,141.91,141.88,0.0477172]
[1740654569630,0.05075749,141.91,141.9,7.0534]
[1740654570531,0.05075749,141.91,141.89,7.0536]
[1740654571032,0.05075749,141.91,141.88,0.0477172]
[1740654571631,0.05075749,141.91,141.9,7.0534]
[1740654571931,5.8234,142.01,141.88,0.0477172]
[1740654572128,7.0499,141.97,141.85,48.1531]
[1740654572332,5.8234,142.01,141.86,28.61356643]
[1740654572533,5.8234,142.01,141.87,7.43356643]
[1740654572730,7.0515,141.94,141.9,7.053]
[1740654572934,0.04637047,141.95,141.93,0.05044901]
[1740654573128,5.8234,142.01,141.86,7.43464701]
[1740654573326,7.0506,141.96,141.93,0.04572492]
[1740654573732,7.10384481,141.96,141.93,0.04572492]
[1740654574332,0.05324481,141.96,141.93,0.04572492]
[1740654574532,7.0514,141.94,141.93,0.04572492]
[1740654576736,7.053,141.91,141.88,7.0541]
[1740654576929,3.8774,141.95,141.88,7.0541]
[1740654577133,7.0527,141.92,141.88,7.0541]
[1740654577328,3.8774,141.95,141.85,1.8822]
[1740654577534,3.8774,141.95,141.87,7.0548]
[1740654577839,0.04930726,141.91,141.89,0.05299717]
[1740654578839,7.10220726,141.91,141.89,0.05299717]
[1740654579639,0.04930726,141.91,141.89,0.05299717]
[1740654580639,0.04930726,141.91,141.9,7.0534]
[1740654582845,0.04930726,141.91,141.89,0.05299717]
[1740654583053,7.10240726,141.91,141.89,0.05299717]
[1740654583942,0.04930726,141.91,141.89,0.05299717]
[1740654584135,7.0534,141.9,141.89,0.05299717]
[1740654586551,8.9876,141.9,141.89,0.05299717]
[1740654588552,8.9876,141.9,141.84,7.0561]
[1740654588553,7.0551,141.87,141.84,7.0561]
[1740654589752,7.10874633,141.87,141.84,7.0561]
[1740654590052,7.10874633,141.87,141.84,7.0563]
[1740654590853,0.05364633,141.87,141.84,7.0563]
[1740654591759,7.10874633,141.87,141.84,7.0563]
[1740654594155,7.0554,141.86,141.84,7.0563]
[1740654597261,0.05364633,141.87,141.84,7.0563]
[1740654597455,7.10874633,141.87,141.84,7.0563]
[1740654600567,7.0554,141.86,141.84,7.0563]
[1740654600860,7.0554,141.86,141.83,70.37191184]
[1740654600861,7.0554,141.86,141.83,77.42861184]
[1740654601763,7.10874633,141.87,141.84,7.056]
[1740654602162,0.05364633,141.87,141.84,7.056]
[1740654602568,7.0554,141.86,141.84,7.056]
[1740654603563,7.0554,141.86,141.83,70.37191184]
[1740654603564,0.05364633,141.87,141.83,70.37191184]
[1740654603767,7.0562,141.85,141.83,77.42851184]
[1740654604165,0.05364633,141.87,141.8,7.4443465]
[1740654604360,7.0571,141.83,141.81,7.0576]
[1740654604866,7.0579,141.81,141.77,2.47132241]
[1740654605260,0.05246946,141.8,141.79,7.0588]
[1740654605458,7.0575,141.82,141.79,7.0588]
[1740654605767,0.0469195,141.81,141.79,7.0588]
[1740654606170,0.0469195,141.81,141.78,7.059]
[1740654607073,0.0469195,141.81,141.77,2.47132241]
[1740654607366,0.0469195,141.81,141.79,7.0588]
[1740654607868,0.0469195,141.81,141.77,2.47132241]
[1740654608065,0.0469195,141.81,141.8,7.0583]
[1740654612170,3.765,141.89,141.85,7.0555]
[1740654612476,3.765,141.89,141.8,7.4383589]
[1740654612675,3.765,141.89,141.85,7.0556]
[1740654613273,0.05257128,141.88,141.86,0.05096512]
[1740654616378,0.05257128,141.88,141.87,7.0549]
[1740654617883,0.05257128,141.88,141.86,0.05096512]
[1740654619383,7.10727128,141.88,141.86,0.05096512]
[1740654619582,0.05257128,141.88,141.86,0.05096512]
[1740654619882,7.10717128,141.88,141.86,0.05096512]
[1740654620483,7.0549,141.87,141.86,0.05096512]
[1740654621377,0.05257128,141.88,141.8,10.96]
[1740654621378,7.0569,141.83,141.8,10.96]
[1740654621578,1.924,141.86,141.8,10.96]
[1740654622181,7.0567,141.84,141.81,7.0576]
[1740654622484,0.05206105,141.84,141.8,10.96]
[1740654622684,7.0571,141.83,141.8,10.96]
[1740654622886,7.0571,141.83,141.78,3.7486]
[1740654624182,7.0571,141.83,141.8,7.0579]
[1740654624384,7.10866105,141.84,141.78,3.7486]
[1740654625389,7.10866105,141.84,141.8,7.0581]
[1740654626092,7.057,141.83,141.8,7.0581]
[1740654626986,0.05206105,141.84,141.8,7.0581]
[1740654627187,0.05206105,141.84,141.79,7.0584]
[1740654627387,0.05206105,141.84,141.78,3.7486]
[1740654627588,7.0571,141.83,141.78,3.7486]
[1740654628190,7.0577,141.82,141.79,7.0586]
[1740654630491,0.05206105,141.84,141.74,70.41276378]
[1740654630691,1.924,141.86,141.74,70.41276378]
[1740654630991,0.0535794,141.8,141.74,70.41276378]
[1740654631481,0.0535794,141.8,141.72,7.45813761]
[1740654631680,0.0535794,141.8,141.71,51.92906218]
[1740654631681,1.924,141.86,141.74,7.061]
[1740654631882,0.05054122,141.77,141.74,7.061]
[1740654632087,192.0,141.85,141.71,38.94136218]
[1740654632283,7.0618,141.74,141.71,38.94136218]
[1740654632789,7.0622,141.73,141.71,38.94136218]
[1740654635083,0.05129381,141.74,141.71,38.94136218]
[1740654635294,7.0623,141.72,141.71,38.94136218]
[1740654635889,7.0623,141.72,141.68,7.0642]
[1740654636086,7.0631,141.71,141.67,7.0647]
[1740654636288,195.7992,141.79,141.65,14.8253]
[1740654636289,1.8505,141.73,141.65,14.8253]
[1740654636494,0.04866307,141.7,141.65,3.8653]
[1740654637495,7.11196307,141.7,141.67,7.0648]
[1740654638192,0.04866307,141.7,141.69,7.0638]
[1740654641398,0.04866307,141.7,141.68,7.0641]
[1740654642989,0.04866307,141.7,141.69,7.0638]
[1740654645396,0.04866307,141.7,141.57,21.17]
[1740654645596,0.04866307,141.7,141.6,4.0351]
[1740654645796,7.0676,141.62,141.59,9.75151869]
[1740654645997,0.0449634,141.67,141.59,9.75151869]
[1740654646197,0.05345359,141.62,141.57,38.94136218]
[1740654646798,0.05345359,141.62,141.57,46.01106218]
[1740654646995,0.05345359,141.62,141.57,38.94136218]
[1740654648002,7.12075359,141.62,141.57,46.01106218]
[1740654648305,0.05345359,141.62,141.57,38.94136218]
[1740654648898,7.0679,141.61,141.57,38.94136218]
[1740654649104,0.05345359,141.62,141.57,38.94136218]
[1740654650399,0.05345359,141.62,141.58,7.0688]
[1740654650802,0.05345359,141.62,141.57,38.94136218]
[1740654651004,7.12085359,141.62,141.57,46.01076218]
[1740654651402,7.12085359,141.62,141.57,7.0694]
[1740654651704,0.05345359,141.62,141.54,4.0006]
[1740654654000,7.0696,141.58,141.54,2.0344]
[1740654654304,2.0082,141.61,141.54,2.0344]
[1740654654600,0.05009087,141.57,141.54,2.0344]
[1740654655002,0.05009087,141.57,141.55,7.0708]
[1740654655197,0.05009087,141.57,141.54,2.0344]
[1740654655505,0.05009087,141.57,141.54,9.1054]
[1740654656407,0.05009087,141.57,141.55,7.0707]
[1740654657305,0.05009087,141.57,141.54,2.0344]
[1740654657306,0.05009087,141.57,141.54,7.0711]
[1740654658601,0.05009087,141.57,141.5,16.948]
[1740654658602,0.05009087,141.57,141.5,7.073]
[1740654658802,0.05009087,141.57,141.44,182.82642539]
[1740654659099,7.0726,141.52,141.45,7.0758]
[1740654659302,7.1264905,141.52,141.45,7.0758]
[1740654660007,7.0729,141.51,141.45,7.0758]
[1740654660198,7.0729,141.51,141.44,11.02]
[1740654660199,0.0538905,141.52,141.44,11.02]
[1740654660398,0.0538905,141.52,141.46,7.0749]
[1740654660607,3.9212,141.6,141.46,7.0749]
[1740654660807,0.04942256,141.5,141.46,7.0749]
[1740654661007,3.9212,141.6,141.46,7.0749]
[1740654661307,7.0726,141.52,141.46,7.0749]
[1740654661706,0.05147087,141.54,141.44,11.02]
[1740654661905,0.04720169,141.49,141.44,11.02]
[1740654662207,7.0727,141.52,141.44,11.02]
[1740654662508,0.05033454,141.48,141.44,11.02]
[1740654663310,0.05033454,141.48,141.47,7.0748]
[1740654665413,0.05033454,141.48,141.46,7.0751]
[1740654667715,0.05033454,141.48,141.44,7.076]
[1740654668409,0.05033454,141.48,141.43,11.0]
[1740654668718,94.88916257,141.6,141.43,32.2]
[1740654668917,80.75166257,141.6,141.44,1.3000187]
[1740654669217,78.74586257,141.6,141.45,1.3000187]
[1740654669417,2.0082,141.61,141.54,7.0708]
[1740654669418,7.069,141.59,141.54,7.0708]
[1740654669720,0.04962098,141.58,141.55,0.04872301]
[1740654672419,0.04962098,141.58,141.57,7.0698]
[1740654676422,7.0675,141.62,141.58,7.0689]
[1740654676617,7.0675,141.62,141.56,12.9056]
[1740654676618,1.9563,141.65,141.57,1.8832]
[1740654676819,3.8354,141.68,141.63,7.0664]
[1740654677015,7.0641,141.69,141.58,1.9538]
[1740654677518,0.05288095,141.65,141.62,0.04484145]
[1740654677714,0.05288095,141.65,141.63,11.04]
[1740654678114,3.9449,141.75,141.63,11.04]
[1740654678319,7.0626,141.72,141.63,11.04]
[1740654678720,3.9449,141.75,141.63,11.04]
[1740654678920,3.9449,141.75,141.58,1.9538]
[1740654679121,3.9449,141.75,141.59,11.06]
[1740654679322,0.04528861,141.68,141.65,0.04937458]
[1740654679620,3.9449,141.75,141.59,11.06]
[1740654679823,3.9449,141.75,141.65,0.0456531]
[1740654679824,0.0522085,141.68,141.65,0.0456531]